[Event "FIDE U16 Olympiad_boards_81-124"]
[Site "Eindhoven, Netherlands"]
[Date "2023.08.14"]
[Round "2.43"]
[White "Kiwanuka, Ssubi"]
[Black "Tatsumi, Kai"]
[Result "0-1"]
[TimeControl "45min+10sec"]
[WhiteElo "1324"]
[BlackElo "1154"]

1. e4 {[%clk 00:45:15]} {[%emt 00:00:04]} c6 {[%clk 00:45:12]} {[%emt
00:00:09]} 2. d4 {[%clk 00:45:11]} {[%emt 00:00:14]} d5 {[%clk 00:45:16]}
{[%emt 00:00:06]} 3. Nc3 {[%clk 00:45:06]} {[%emt 00:00:15]} dxe4 {[%clk
00:45:21]} {[%emt 00:00:05]} 4. Nxe4 {[%clk 00:44:54]} {[%emt 00:00:21]} Nf6
{[%clk 00:45:25]} {[%emt 00:00:06]} 5. Ng3 {[%clk 00:44:27]} {[%emt 00:00:37]}
h5 {[%clk 00:44:50]} {[%emt 00:00:46]} 6. h4 {[%clk 00:44:00]} {[%emt
00:00:37]} g6 {[%clk 00:44:41]} {[%emt 00:00:20]} 7. Nf3 {[%clk 00:43:48]}
{[%emt 00:00:21]} Bg4 {[%clk 00:43:49]} {[%emt 00:01:01]} 8. Be2 {[%clk
00:43:50]} {[%emt 00:00:08]} Bg7 {[%clk 00:43:38]} {[%emt 00:00:22]} 9. Bg5
{[%clk 00:43:27]} {[%emt 00:00:33]} Nbd7 {[%clk 00:39:54]} {[%emt 00:03:53]} 10.
O-O {[%clk 00:41:57]} {[%emt 00:01:40]} O-O {[%clk 00:37:20]} {[%emt 00:02:44]}
11. Qd2 {[%clk 00:40:11]} {[%emt 00:01:55]} Kh7 {[%clk 00:36:57]} {[%emt
00:00:33]} 12. Nh2 {[%clk 00:39:42]} {[%emt 00:00:38]} Bxe2 {[%clk 00:36:22]}
{[%emt 00:00:45]} 13. Qxe2 {[%clk 00:39:48]} {[%emt 00:00:04]} b5 {[%clk
00:28:13]} {[%emt 00:08:20]} 14. Rfe1 {[%clk 00:39:15]} {[%emt 00:00:42]} e6
{[%clk 00:25:46]} {[%emt 00:02:38]} 15. Qd3 {[%clk 00:38:24]} {[%emt 00:01:00]}
Bh6 {[%clk 00:22:04]} {[%emt 00:03:53]} 16. Nf3 {[%clk 00:36:57]} {[%emt
00:01:36]} Bxg5 {[%clk 00:21:58]} {[%emt 00:00:16]} 17. hxg5 {[%clk 00:36:59]}
{[%emt 00:00:07]} Nd5 {[%clk 00:16:50]} {[%emt 00:05:19]} 18. Nxh5 {[%clk
00:36:49]} {[%emt 00:00:20]} Kg8 {[%clk 00:15:23]} {[%emt 00:01:37]} 19. Ng3
{[%clk 00:36:21]} {[%emt 00:00:38]} Kg7 {[%clk 00:14:39]} {[%emt 00:00:55]} 20.
Ne5 {[%clk 00:34:09]} {[%emt 00:02:20]} Nxe5 {[%clk 00:13:49]} {[%emt
00:01:01]} 21. Rxe5 {[%clk 00:34:09]} {[%emt 00:00:09]} Rh8 {[%clk 00:13:29]}
{[%emt 00:00:30]} 22. b3 {[%clk 00:32:00]} {[%emt 00:02:18]} Rh4 {[%clk
00:11:11]} {[%emt 00:02:30]} 23. c3 {[%clk 00:30:03]} {[%emt 00:02:06]} Qd6
{[%clk 00:09:34]} {[%emt 00:01:47]} 24. Ne4 {[%clk 00:28:55]} {[%emt 00:01:16]}
Rah8 {[%clk 00:09:39]} {[%emt 00:00:06]} 25. f3 {[%clk 00:28:38]} {[%emt
00:00:27]} Qa3 {[%clk 00:05:53]} {[%emt 00:03:57]} 26. Kf2 {[%clk 00:27:28]}
{[%emt 00:01:18]} Qb2+ {[%clk 00:05:07]} {[%emt 00:00:57]} 27. Nd2 {[%clk
00:24:47]} {[%emt 00:02:49]} Qxa1 {[%clk 00:04:34]} {[%emt 00:00:46]} 28. c4
{[%clk 00:24:20]} {[%emt 00:00:37]} Qxd4+ {[%clk 00:01:49]} {[%emt 00:02:56]}
29. Qxd4 {[%clk 00:24:13]} {[%emt 00:00:16]} Rxd4 {[%clk 00:01:56]} {[%emt
00:00:03]} 30. Ne4 {[%clk 00:24:06]} {[%emt 00:00:16]} bxc4 {[%clk 00:01:54]}
{[%emt 00:00:13]} 31. bxc4 {[%clk 00:24:06]} {[%emt 00:00:10]} Rxc4 {[%clk
00:02:01]} {[%emt 00:00:03]} 32. Kg3 {[%clk 00:22:58]} {[%emt 00:01:17]} Rh1
{[%clk 00:01:16]} {[%emt 00:00:56]} 33. Nd6 {[%clk 00:22:40]} {[%emt 00:00:28]}
Rc2 {[%clk 00:01:04]} {[%emt 00:00:22]} 34. a4 {[%clk 00:22:35]} {[%emt
00:00:15]} Rg1 {[%clk 00:01:11]} {[%emt 00:00:04]} 35. Kh3 {[%clk 00:22:15]}
{[%emt 00:00:22]} Rgxg2 {[%clk 00:01:12]} {[%emt 00:00:16]} 36. Ne4 {[%clk
00:21:53]} {[%emt 00:00:32]} Rh2+ {[%clk 00:00:35]} {[%emt 00:00:48]} 37. Kg4
{[%clk 00:21:48]} {[%emt 00:00:12]} Rcg2+ {[%clk 00:00:37]} {[%emt 00:00:09]}
38. Ng3 {[%clk 00:21:54]} {[%emt 00:00:05]} f5+ {[%clk 00:00:31]} {[%emt
00:00:16]} 39. gxf6+ {[%clk 00:21:59]} {[%emt 00:00:05]} Nxf6+ {[%clk
00:00:38]} {[%emt 00:00:04]} 40. Kf4 {[%clk 00:22:02]} {[%emt 00:00:06]} Rh4+
{[%clk 00:00:42]} {[%emt 00:00:07]} 41. Kg5 {[%clk 00:21:59]} {[%emt 00:00:10]}
Rh5+ {[%clk 00:00:47]} {[%emt 00:00:08]} 42. Kf4 {[%clk 00:22:00]} {[%emt
00:00:09]} Rxe5 {[%clk 00:00:55]} {[%emt 00:00:03]} 43. Kxe5 {[%clk 00:22:07]}
{[%emt 00:00:02]} Rxg3 {[%clk 00:01:04]} {[%emt 00:00:02]} 44. Kxe6 {[%clk
00:22:15]} {[%emt 00:00:02]} Rxf3 {[%clk 00:01:12]} {[%emt 00:00:02]} 45. Kd6
{[%clk 00:22:23]} {[%emt 00:00:01]} Ra3 {[%clk 00:01:21]} {[%emt 00:00:02]} 46.
Kxc6 {[%clk 00:22:29]} {[%emt 00:00:04]} Rxa4 {[%clk 00:01:30]} {[%emt
00:00:02]} 47. Kb5 {[%clk 00:22:37]} {[%emt 00:00:01]} Rf4 {[%clk 00:01:37]}
{[%emt 00:00:03]} 48. Ka6 {[%clk 00:22:45]} {[%emt 00:00:02]} g5 {[%clk
00:01:46]} {[%emt 00:00:02]} 49. Kxa7 {[%clk 00:22:53]} {[%emt 00:00:02]} g4
{[%clk 00:01:54]} {[%emt 00:00:02]} 50. Kb6 {[%clk 00:23:00]} {[%emt 00:00:03]}
g3 {[%clk 00:02:03]} {[%emt 00:00:01]} 51. Kc5 {[%clk 00:23:02]} {[%emt
00:00:07]} g2 {[%clk 00:02:12]} {[%emt 00:00:02]} 52. Kd6 {[%clk 00:23:05]}
{[%emt 00:00:07]} g1=Q {[%clk 00:02:18]} {[%emt 00:00:04]} 53. Ke5 {[%clk
00:23:13]} {[%emt 00:00:03]} Qe3+ {[%clk 00:02:25]} {[%emt 00:00:03]} 0-1

[Event "FIDE U16 Olympiad_boards_81-124"]
[Site "Eindhoven, Netherlands"]
[Date "2023.08.14"]
[Round "2.44"]
[White "Yamada, Misaki"]
[Black "Hailey, Nio Mitchelle"]
[Result "0-1"]
[TimeControl "45min+10sec"]
[WhiteElo "1462"]
[BlackElo "1052"]

1. d4 {[%clk 00:45:17]} {[%emt 00:00:02]} d5 {[%clk 00:45:11]} {[%emt
00:00:09]} 2. c4 {[%clk 00:45:23]} {[%emt 00:00:04]} c6 {[%clk 00:45:11]}
{[%emt 00:00:10]} 3. cxd5 {[%clk 00:45:28]} {[%emt 00:00:06]} cxd5 {[%clk
00:45:13]} {[%emt 00:00:08]} 4. Bf4 {[%clk 00:45:30]} {[%emt 00:00:07]} Nf6
{[%clk 00:45:08]} {[%emt 00:00:14]} 5. Nc3 {[%clk 00:44:50]} {[%emt 00:00:51]}
Nc6 {[%clk 00:44:38]} {[%emt 00:00:39]} 6. e3 {[%clk 00:44:49]} {[%emt
00:00:13]} a6 {[%clk 00:44:14]} {[%emt 00:00:33]} 7. Be2 {[%clk 00:44:16]}
{[%emt 00:00:43]} Bf5 {[%clk 00:43:52]} {[%emt 00:00:32]} 8. Nf3 {[%clk
00:43:53]} {[%emt 00:00:33]} e6 {[%clk 00:43:25]} {[%emt 00:00:37]} 9. h3
{[%clk 00:42:19]} {[%emt 00:01:45]} Be7 {[%clk 00:42:08]} {[%emt 00:01:26]} 10.
O-O {[%clk 00:39:40]} {[%emt 00:02:49]} O-O {[%clk 00:40:55]} {[%emt 00:01:23]}
11. Nh4 {[%clk 00:29:51]} {[%emt 00:10:00]} Bg6 {[%clk 00:38:14]} {[%emt
00:02:50]} 12. Nxg6 {[%clk 00:29:15]} {[%emt 00:00:47]} fxg6 {[%clk 00:37:10]}
{[%emt 00:01:13]} 13. Rc1 {[%clk 00:23:52]} {[%emt 00:05:34]} Rc8 {[%clk
00:33:22]} {[%emt 00:03:57]} 14. a3 {[%clk 00:19:54]} {[%emt 00:04:09]} Bd6
{[%clk 00:29:19]} {[%emt 00:04:12]} 15. Bxd6 {[%clk 00:12:03]} {[%emt
00:08:01]} Qxd6 {[%clk 00:28:47]} {[%emt 00:00:42]} 16. b4 {[%clk 00:07:56]}
{[%emt 00:04:18]} e5 {[%clk 00:26:11]} {[%emt 00:02:45]} 17. dxe5 {[%clk
00:03:48]} {[%emt 00:04:19]} Qxe5 {[%clk 00:24:56]} {[%emt 00:01:25]} 18. Qb3
{[%clk 00:01:54]} {[%emt 00:02:03]} Kh8 {[%clk 00:23:33]} {[%emt 00:01:33]} 19.
Rfd1 {[%clk 00:00:16]} {[%emt 00:01:49]} d4 {[%clk 00:22:35]} {[%emt 00:01:08]}
20. exd4 {[%clk 00:00:12]} {[%emt 00:00:14]} Nxd4 {[%clk 00:22:40]} {[%emt
00:00:05]} 21. Qb2 {[%clk 00:00:12]} {[%emt 00:00:11]} Nxe2+ {[%clk 00:22:18]}
{[%emt 00:00:32]} 22. Qxe2 {[%emt 00:00:08]} Qxe2 {[%clk 00:21:13]} {[%emt
00:01:12]} 23. Nxe2 {[%clk 00:00:24]} {[%emt 00:00:02]} Rxc1 {[%clk 00:21:20]}
{[%emt 00:00:03]} 24. Rxc1 {[%clk 00:00:31]} {[%emt 00:00:03]} Kg8 {[%clk
00:21:23]} {[%emt 00:00:08]} 25. Rc7 {[%clk 00:00:16]} {[%emt 00:00:25]} Ne4
{[%clk 00:20:46]} {[%emt 00:00:47]} 26. f3 {[%clk 00:00:15]} {[%emt 00:00:11]}
Nd6 {[%clk 00:20:18]} {[%emt 00:00:38]} 27. Rc1 {[%clk 00:00:12]} {[%emt
00:00:12]} Re8 {[%clk 00:19:59]} {[%emt 00:00:29]} 28. Kf1 {[%clk 00:00:14]}
{[%emt 00:00:09]} Rc8 {[%clk 00:19:29]} {[%emt 00:00:40]} 29. Rd1 {[%clk
00:00:13]} {[%emt 00:00:12]} Nc4 {[%clk 00:19:02]} {[%emt 00:00:37]} 30. Rd7
{[%clk 00:00:13]} {[%emt 00:00:10]} Nxa3 {[%clk 00:18:32]} {[%emt 00:00:39]} 31.
Rxb7 {[%clk 00:00:17]} {[%emt 00:00:06]} Nc2 {[%clk 00:18:09]} {[%emt
00:00:34]} 32. Kf2 {[%clk 00:00:14]} {[%emt 00:00:13]} Re8 {[%clk 00:17:41]}
{[%emt 00:00:37]} 33. Nf4 {[%clk 00:00:13]} {[%emt 00:00:12]} g5 {[%clk
00:16:53]} {[%emt 00:00:58]} 34. Nd3 {[%clk 00:00:15]} {[%emt 00:00:08]} Nd4
{[%clk 00:16:28]} {[%emt 00:00:35]} 35. Nc5 {[%clk 00:00:13]} {[%emt 00:00:12]}
Re2+ {[%clk 00:15:56]} {[%emt 00:00:41]} 36. Kg3 {[%clk 00:00:15]} {[%emt
00:00:09]} Nf5+ {[%clk 00:15:30]} {[%emt 00:00:35]} 37. Kh2 {[%clk 00:00:11]}
{[%emt 00:00:14]} h6 {[%clk 00:15:02]} {[%emt 00:00:39]} 38. Nxa6 {[%emt
00:00:11]} 0-1